Cogmind - Beta 10.2 @@@ ROGUE MODE // 2021.05.17 @ 12:30:55 Player: mat Result: Destroyed by as-47166 with Assembled Blade Performance ------------- Evolutions (0) 0 Regions Visited (2) 400 Robots Destroyed (16) 80 Value Destroyed (271) 271 Prototype IDs (0) 0 Alien Tech Used (0) 0 Bonus (0) 0 TOTAL SCORE: 751 Bonus ------- None Cogmind --------- Core Integrity 0/250 Matter 287/300 Energy 100/100 System Corruption 2% Temperature Cool (0) Movement Treading (180) Ox1 Location -10/Mines Parts ------- > --- POWER (1) -------- (None) > --- PROPULSION (2) --- Improved Treads Improved Treads > --- UTILITY (2) ------ Large Storage Unit High-capacity Storage Unit > --- WEAPON (2) ------- (None) > --- INVENTORY (18) --- Improved Ion Engine Improved Ion Engine Improved Ion Engine Aluminum Leg Aluminum Leg Medium Matter Pod (100) Propulsion Shielding Propulsion Shielding Peak State ------------ > --- POWER ------------ Light Ion Engine > --- PROPULSION ------- Improved Treads Improved Treads > --- UTILITY ---------- Large Storage Unit High-capacity Storage Unit > --- WEAPON ----------- Beam Rifle Light Assault Rifle > --- INVENTORY -------- Improved Ion Engine Improved Ion Engine Improved Ion Engine Improved Treads Improved Treads Aluminum Leg Aluminum Leg Medium Matter Pod Propulsion Shielding Propulsion Shielding Medium Laser Small Laser [Rating: 11] Favorites ----------- Power Light Ion Engine Engine Light Ion Engine Propulsion Aluminum Leg Treads Improved Treads Leg Aluminum Leg Utility Large Storage Unit Storage Large Storage Unit Weapon Light Assault Rifle Energy Gun Beam Rifle Ballistic Gun Light Assault Rifle Build | -11 -10 -10 ------- Run | Scr Mat Min Slots Evolved . | . . . Power . | . . . Propulsion . | . . . Utility . | . . . Weapon . | . . . Parts Attached 21 | 6 6 9 Power 2 | 1 . 1 Engine 2 | 1 . 1 Core . | . . . Reactor . | . . . Propulsion 7 | 2 1 4 Treads 4 | . . 4 Leg 3 | 2 1 . Wheel . | . . . Hover . | . . . Flight . | . . . Utility 4 | 1 3 . Device . | . . . Storage 4 | 1 3 . Processor . | . . . Hackware . | . . . Protection . | . . . Artifact . | . . . Weapon 8 | 2 2 4 Energy Gun 5 | 1 1 3 Energy Cannon . | . . . Ballistic Gun 3 | 1 1 1 Ballistic Cannon . | . . . Launcher . | . . . Special Weapon . | . . . Impact Weapon . | . . . Slashing Weapon . | . . . Piercing Weapon . | . . . Special Melee Weapon . | . . . Unidentified Prototypes . | . . . Parts Lost 10 | . 1 9 Power 1 | . . 1 Propulsion 3 | . . 3 Utility . | . . . Weapon 6 | . 1 5 Highest Loss Streak 6 | . 1 6 Average Slot Usage (%) 93 | . 90 96 Engine 13 | . 14 12 Treads 3 | . . 7 Leg 24 | . 28 20 Storage 23 | . 19 28 Energy Gun 13 | . 13 13 Ballistic Gun 13 | . 14 12 Naked Turns . | . . . Heaviest Build 55 | 9 55 55 Greatest Support 46 | 20 20 46 Greatest Overweight (x) 2 | . 2 2 Average Overweight (x) . | . . 1 Largest Inventory Capacity 18 | 6 18 18 Average Capacity 13 | 5 10 18 Most Carried 16 | 4 16 16 Average Carried 10 | 1 8 13 Final Capacity 18 | 6 18 18 Final Carried 15 | 3 15 8 Class Distribution -------------------- 100% | Mutant Dominant Class ---------------- Mutant | -10/Materials Mutant | -10/Mines Resources | -11 -10 -10 ----------- Run | Scr Mat Min Matter Collected 514 | 201 211 102 Remotely . | . . . Salvage Created 312 | . 171 141 Parts 25 | . 14 11 Haulers Intercepted . | . . . Recyclers Shooed . | . . . Parts Field Recycled . | . . . Retrieved Matter . | . . . Parts Self-Destructed . | . . . Prevented . | . . . Kills | -11 -10 -10 ------- Run | Scr Mat Min Combat Hostiles Destroyed 13 | . 6 7 Guns 13 | . 6 7 Classes Destroyed 6 | . 3 3 Worker 1 | . 1 . Builder 1 | . . 1 Tunneler 1 | . . 1 Swarmer 9 | . 3 6 Grunt 3 | . 3 . Demolisher 1 | . . 1 Best Kill Streak 4 | . 4 3 Combat Bots Only 3 | . 2 3 Max Kills in Single Turn 2 | . 2 1 Gunslinging . | . . . Exploded . | . . . Melee . | . . . Uniques/NPCs Destroyed . | . . . Combat | -11 -10 -10 -------- Run | Scr Mat Min Damage Taken 1411 | . 301 1110 Core 273 | . 36 237 Absorbed by Shields . | . . . Core Remaining (%) 100 | 100 . . Volleys Fired 58 | . 23 35 Largest 2 | . 2 2 Hottest 90 | . 76 90 Shots Fired 114 | . 46 68 Gun 114 | . 46 68 Cannon . | . . . Launcher . | . . . Special . | . . . Kinetic 54 | . 23 31 Thermal 60 | . 23 37 Explosive . | . . . Electromagnetic . | . . . Robot Hit Streak 5 | . 4 5 Robot Miss Streak 5 | . 5 5 Penetration Max . | . . . Secondary Targets 1 | . . 1 Max Gunslinging Chain 1 | . . 1 Shots Hit Robots 55 | . 19 36 Core Hits 23 | . 10 13 Critical Hits 1 | . . 1 Critical Kills . | . . . Critical Parts Destroyed 1 | . . 1 Melee Attacks . | . . . Impact . | . . . Slashing . | . . . Piercing . | . . . Sneak Attacks . | . . . Combat Hostiles . | . . . Follow-up Attacks . | . . . Damage Inflicted 584 | . 193 391 Guns 583 | . 193 390 Cannons . | . . . Explosions . | . . . Melee . | . . . Ramming 1 | . . 1 Kinetic 171 | . 55 116 Thermal 412 | . 138 274 Explosive . | . . . Electromagnetic . | . . . Impact . | . . . Slashing . | . . . Piercing . | . . . Highest Corruption 2 | . . 2 Average Corruption 1 | . . 1 Corruption Purged . | . . . Effects 1 | . . 1 Data Loss (minor) 1 | . . 1 Overload Shots . | . . . Overflow Damage . | . . . Projectiles . | . . . Explosions . | . . . Melee . | . . . Knockbacks . | . . . Impact . | . . . Kinetic . | . . . Secondary . | . . . Self-Inflicted Damage . | . . . Shots . | . . . Rammed 2 | . . 2 Targets Rammed 2 | . . 2 Kicked . | . . . Crushed . | . . . Highest Temperature 300 | . 190 300 Average Temperature 81 | . 60 94 Received Heat Transfer 275 | . 75 200 Siege Activations . | . . . Robots Corrupted . | . . . Combat Hostiles . | . . . Parts Fried . | . . . Impact Corruptions . | . . . Robots Melted . | . . . Combat Hostiles . | . . . Parts Melted . | . . . Heat Transferred 1039 | . 335 704 Parts Sabotaged . | . . . Parts Stolen . | . . . Parts Stripped . | . . . Power Chain Reactions . | . . . Missiles Intercepted . | . . . Alert | -11 -10 -10 ------- Run | Scr Mat Min Peak Influence 164 | . 145 164 Initial 19 | . . 19 Average 66 | . 61 82 Maximum Alert Level . | . . . Low Security (%) 100 | 100 100 100 Level 1 . | . . . Level 2 . | . . . Level 3 . | . . . Level 4 . | . . . Level 5 . | . . . High Security . | . . . Max Security . | . . . Squads Dispatched . | . . . Investigation . | . . . Extermination . | . . . Reinforcement . | . . . Assault . | . . . Garrison . | . . . Intercept . | . . . Construction Impeded . | . . . Haulers Reinforced . | . . . Stealth | -11 -10 -10 --------- Run | Scr Mat Min Distress Signals . | . . . Communications Jammed . | . . . Distress Signals . | . . . Times Spotted 19 | . 9 10 Peak Tracking Total 3 | . 3 3 Tactical Retreats 1 | . 1 . Traps | -11 -10 -10 ------- Run | Scr Mat Min Traps Triggered 1 | . 1 . Indirectly . | . . . Trap Hack Attempts . | . . . Triggered . | . . . Disarmed . | . . . Reprogrammed . | . . . Reused . | . . . Traps Extracted . | . . . Installed . | . . . Triggered . | . . . Machines | -11 -10 -10 ---------- Run | Scr Mat Min Machines Disabled . | . . . Max in Single Turn . | . . . Machines Sabotaged . | . . . Garrisons Compromised . | . . . Overloaded Fab Kills . | . . . Fab Network Shutdowns . | . . . Hacking | -11 -10 -10 --------- Run | Scr Mat Min Machines Accessed . | . . . Terminals . | . . . Fabricators . | . . . Repair Stations . | . . . Recycling Units . | . . . Scanalyzers . | . . . Garrison Access . | . . . Total Hacks . | . . . Successful . | . . . Failed . | . . . Catastrophic . | . . . Database Lockouts . | . . . Manual . | . . . Terminals . | . . . Fabricators . | . . . Repair Stations . | . . . Recycling Units . | . . . Scanalyzers . | . . . Garrison Access . | . . . Terminal Hacks . | . . . Fabricator Hacks . | . . . Repair Station Hacks . | . . . Recycling Unit Hacks . | . . . Scanalyzer . | . . . Garrison Access Hacks . | . . . Unauthorized Hacks . | . . . Terminals . | . . . Fabricators . | . . . Repair Stations . | . . . Recycling Units . | . . . Scanalyzers . | . . . Garrison Access . | . . . Data Cores Recovered . | . . . Used . | . . . Hacking Detections . | . . . Full Trace Events . | . . . Feedback Events . | . . . Feedback Blocked . | . . . Robot Schematics Acquired . | . . . Robots Built . | . . . Matter . | . . . Time . | . . . Total Robot Build Rating . | . . . Part Schematics Acquired . | . . . Parts Built . | . . . Matter . | . . . Time . | . . . Total Part Build Rating . | . . . Parts Repaired . | . . . Time . | . . . Parts Recycled . | . . . Recycled Matter . | . . . Retrieved Matter . | . . . Retrieved Components . | . . . Parts Scanalyzed . | . . . Part Schematics Acquired . | . . . Parts Damaged . | . . . Bothacking | -11 -10 -10 ------------ Run | Scr Mat Min Used RIF Installer . | . . . Robots Hacked . | . . . Non-combat . | . . . Combat . | . . . Robot Hacks Applied . | . . . Relay Couplers Released . | . . . Robots Rewired . | . . . Allies Hacked . | . . . Hacks Repelled . | . . . Allies | -11 -10 -10 -------- Run | Scr Mat Min Total Allies . | . . . Largest Group . | . . . Highest-Rated Group . | . . . Highest-Rated Ally . | . . . Total Orders . | . . . Ally Attacks . | . . . Total Damage . | . . . Kills . | . . . Allies Corrupted . | . . . Allies Melted . | . . . Intel | -11 -10 -10 ------- Run | Scr Mat Min Robot Analysis Total . | . . . Derelict Logs Recovered . | . . . Drone Launches . | . . . Drone Recoveries . | . . . Exploration | -11 -10 -10 ------------- Run | Scr Mat Min Turns Passed 1246 | 83 639 524 Spaces Moved 703 | 69 408 226 Core 18 | 18 . . Treads 58 | . . 58 Legs 627 | 51 408 168 Wheels . | . . . Hover . | . . . Flight . | . . . Fastest Speed 50 | 50 120 180 Average Speed 144 | 101 131 180 Slowest Speed 200 | 120 180 200 Overloaded Moves . | . . . Propulsion Burnouts . | . . . Robots Hopped . | . . . Cave-ins Triggered . | . . . Exploration Rate (%) 37 | 4 65 44 Regions Visited 2 Branch Regions 1 Pre-discovered Areas . | . . . Known Exits Taken . | . . . Unknown Exits Taken 2 | 1 1 . Scrap Searched 1 | . . 1 Spaces Dug . | . . . Terrain Destroyed . | . . . Melee . | . . . Projectile . | . . . AOE . | . . . Terrain Rammed . | . . . Walls Destroyed . | . . . Machines Disabled . | . . . Actions | -11 -10 -10 --------- Run | Scr Mat Min Total 828 | 80 470 278 Wait 11 | . 9 2 Move 701 | 68 407 226 Hop . | . . . Pick Up 26 | 6 18 2 Fast Attach 4 | 3 1 . Attach 11 | 3 1 7 Detach . | . . . Swap 6 | . 4 2 Drop 9 | . 7 2 Fire 58 | . 23 35 Melee . | . . . Ram . | . . . Kick . | . . . Crush 2 | . . 2 Escape Stasis . | . . . Rewire . | . . . Trap . | . . . Miscellaneous . | . . . Route ------- -11/Scrapyard -10/Materials (discovered 3 exits: [*Mat x2] / [*Min]) -10/Mines (discovered 1 exit: [*Mat]) History --------- Turn | Location | Event 3 | -11/Scrapyard | Discovered new exit (range 16) 84 | -11/Scrapyard | Entered Materials 317 | -10/Materials | Build established: Mutant 421 | -10/Materials | Discovered new exit (range 15) 581 | -10/Materials | Discovered new exit (range 8) 675 | -10/Materials | Discovered new exit (range 15) 723 | -10/Materials | Entered Mines 1014 | -10/Mines | Discovered new exit (range 10) 1078 | -10/Mines | Assembled infested the area 1135 | -10/Mines | Lost 3 parts (2n1w) 1211 | -10/Mines | Core integrity fell below 50% 1216 | -10/Mines | Core integrity fell below 20% 1247 | -10/Mines | Destroyed by as-47166 with Assembled Blade Last Messages --------------- U-05 Engineer destroyed. Acquired 11 matter. The unstable cave ceiling collapses. R-06 Scavenger collects Welding Torch. T-07 Excavator destroyed. Acquired 17 matter. U-05 Engineer suffers critical hit. U-05 Engineer destroyed. Lgt. Assault Rifle destroyed. Beam Rifle destroyed. K-01 Serf collects debris. Med. Laser destroyed. System corrupted by crushing effect (+1). Imp. Treads severed. Lgt. Ion Engine destroyed. System corrupted by crushing effect (+1). Sml. Laser destroyed. Imp. Treads destroyed. System corrupted: Component data lost. Slammed into as-47166. Map ----- +----------------------------------------------------+ | ##???????# ####!#### ##?????????????????? | | ##????????# < ## #% ### #??????????????????? | | ###?????????# # #? #??????????????????? | | ????????????###### # ##??????????????????? | | ?????????????????# # #?#???????????????????? | | ?????????????????# # #?????????????????????? | | ?????????????????# #!# #?????????????????????? | | ?????????????????## # ##?????????????????????? | | ??????????#####???# # #??????????????????????? | | ?????????## #???##* # ##??????????????????????? | | ????????## ###### ###?#???????????????????????? | | ??????## #???????????????????????????? | | ??## ########???????????????????????????? | | ## #??????????????????????????????????? | | ##??????????????????????????????????? | | #?????????########??????????????????? | | ## ##????????# #??????????????????? | | ??## ##???????# #??????????????????? | | ?????## ##??????# #??????????????????? | | ??????## ##?????# """ #??????????????????? | | ?????????# ##????# """ #??????????????????? | | ?????????# #????# """ #??????????????????? | | ?????????## #????# a #??????????????????? | | ??????????##### ##????# #####??????????????????? | | ??????????????## #?????# a#??????????????????????? | | ???????????????# #?????# @#??????????????????????? | | ???????????????# #?????# #??????????????????????? | | ???????????????# #?????# #??????????????????????? | | ???????????????# #?????# #??????????????????????? | | ???????????????#=#?????# #??????????????????????? | | ???????????????# #?????# #??????????????????????? | | ???????????????# #####?# #??????????????????????? | | ???????????????# #?# #??????????????????????? | | ???????????????#### ###= #??????????????????????? | | ??????????????????# # #??????????????????????? | | ??????????????????# #??????????????????????? | | ????????????? #??????????????????????? | | ????????"" #??????????????????????? | | ????????"" ###### #?????????????????????? | | ???????? ??????? ????????????????????? | | ???????????????? ??????????????????? | | ???????????????### % ????????????????? | | ?????????????????# $ #####???????????????? | | ?????????????????## ##???????????????????? | | ??????????????????## ##????????????????????? | | ???????????????????# ##?????????????????????? | | ???????????????????# #??????????????????????? | | ???????????????????# #??????????????????????? | | ???????????????????## ??????????????????????? | | ?????????????????????# ???????????????????????? | +----------------------------------------------------+ Best States ------------- Heat Dissipation 25 Energy Generation 10 Energy Capacity 125 Matter Stores 300 Matter Capacity 300 Sight Range 16 Terrain Scan Density 10 Evasion (%) 50 Recoil Reduction 2 Item Schematics ----------------- None Robot Schematics ------------------ None Fabricated ------------ Nothing Alien Tech Used ----------------- None Achievements -------------- None Challenges ------------ None Game ------ Seed TractorTerrabombMegatreads Manual? 0 Play Time 00:10:38 Cumulative 119.9 hours Start 2021.05.17 @ 12:19:38 End 2021.05.17 @ 12:30:55 Sessions 1 Manual Loads 0 Difficulty Rogue Special Mode None Game No. 196 Rogue 194 Adventurer 2 Explorer 0 Win Type - Total 1 Types 1/0/0/0/0/0/0/0/0 Lore% 57 Gallery% 53 Achievement% 45 Wizard Run 0 Options --------- ASCII 0 Keyboard 0 Movement Mouse Keybinds 0 Fullscreen 1 Font 18/SmallcapsGlow Map View 76x50 Tactical HUD 0 Map Filters NONE Filters NONE Steam 1 RUN: d9740e59-3d88-4ad6-80b1-dba128315c67